[Event "German Bundesliga 2024-25"]
[Site "Germany"]
[Date "2024.12.01"]
[Round "4.16"]
[White "Reuker, Jari"]
[Black "Tarlev, Konstantin"]
[Result "1-0"]
[Annotator "TA"]
[ECO "B47"]
[WhiteElo "2408"]
[BlackElo "2555"]
[PlyCount "94"]
[EventDate "2024.09.27"]
[EventType "team-tourn"]
[EventCountry "GER"]
[SourceTitle "playchess.com"]
[Source "ChessBase"]
[SourceQuality "1"]
[WhiteTeam "Werder Bremen"]
[BlackTeam "Viernheim"]
[TimeControl "40/5400+30:1800+30"]

{[%evp 11,94,12,27,20,33,17,12,16,30,22,17,0,48,38,56,-5,104,96,88,59,82,0,0,0,0,0,0,0,0,0,26,32,78,68,76,0,0,0,0,0,0,0,0,10,16,45,19,28,103,75,87,77,76,75,92,97,115,119,95,100,146,132,125,108,308,316,286,312,349,350,536,216,721,739,1410,1349,2381,2410,2481,1569,4618,4409,29983,29984,5114]} 1. e4 {[%emt 0:00:03]} c5 {[%emt 0:00:06]} 2. Nf3 {[%emt 0:00:06][%cal Bg1f3,Bf3d4,Bd4b5][%mdl 32]} e6 {[%emt 0:00:02]} 3. d4 {[%emt 0:00:11]} cxd4 {[%emt 0:00:04]} 4. Nxd4 {[%emt 0:00:07]} Nc6 {[%emt 0:00:02]} 5. Nc3 {[%emt 0:00:10]} Qc7 {[%emt 0:00:06]} 6. Be2 {[%emt 0:00:24]} Nf6 {[%emt 0:00:36]} 7. Ndb5 {[%emt 0:00:56]} Qb8 {[%emt 0:00:21]} 8. f4 {[%emt 0:00:12]} d6 {[%emt 0:14:22]} 9. Be3 {[%emt 0:04:05] The position is equal.} Be7 {[%emt 0:03:17]} 10. g4 {[%emt 0:12:49]} a6 {[%emt 0:04:32]} 11. Nd4 {[%emt 0:12:59]} Nxd4 {[%emt 0:18:44]} (11... e5 $11 12. Nb3 exf4 13. Bxf4 h6) 12. Qxd4 $14 {[%emt 0:00:13] Strongly threatening g5.} e5 {[%emt 0:00:03]} 13. Qd1 {[%emt 0:20:44]} ({White should play} 13. Qd3 $14) 13... exf4 {[%emt 0:25:05]} (13... d5 $1 $11 {keeps the balance.}) 14. Bxf4 $16 {[%emt 0:00:13]} h6 {[%emt 0:00:02]} 15. Qd4 {[%emt 0:03:07]} Qa7 {[%emt 0:03:24]} 16. O-O-O {[%emt 0:16:36][%cal Ba1d1,Bd1d4,Bd4d6,Bd6h6][%mdl 32] White has more active pieces. The black rooks are passive.} (16. Qd3 $16) 16... Qxd4 $11 {[%emt 0:01:47]} 17. Rxd4 {[%emt 0:00:03]} Bxg4 {[%emt 0:00:33]} 18. Bxg4 {[%emt 0:00:12]} Nxg4 {[%emt 0:00:03]} 19. Bxd6 {[%emt 0:01:58]} Bxd6 {[%emt 0:08:56]} 20. Rxd6 {[%emt 0:00:03]} O-O {[%emt 0:13:38]} 21. Rg1 {[%emt 0:00:42]} Ne5 {[%emt 0:02:09]} (21... h5 $14) 22. Rxh6 $16 {[%emt 0:01:32]} g6 {[%emt 0:00:02]} 23. Nd5 {[%emt 0:02:20]} (23. Rh5 $16 Rae8 24. Rf5) 23... Kg7 $1 $11 {[%emt 0:00:12]} 24. Rh3 {[%emt 0:03:22]} Rh8 {[%emt 0:00:44]} 25. Rgg3 {[%emt 0:04:02]} Rxh3 {[%emt 0:00:04]} 26. Rxh3 {[%emt 0:00:03][%mdl 4096] Endgame. KRN-KRN} Re8 {[%emt 0:00:01]} 27. Rb3 {[%emt 0:04:02]} Nc4 {[%emt 0:00:38]} 28. Rxb7 {[%emt 0:02:17]} Rxe4 {[%emt 0:00:01][%cal Re4e1] [#]} 29. Re7 {[%emt 0:00:22]} Rd4 {[%emt 0:01:34]} (29... Rg4 $1 $11 {remains equal.} 30. Re1 Rg2) 30. Nc3 {[%emt 0:02:23]} Rg4 {[%emt 0:01:08]} 31. b3 {[%emt 0:01:00]} Rg1+ {[%emt 0:00:03]} 32. Nd1 {[%emt 0:00:03]} Nd6 {[%emt 0:01:20]} 33. Kd2 {[%emt 0:02:21]} Rh1 {[%emt 0:00:08]} 34. Re2 {[%emt 0:00:06]} f5 {[%emt 0:00:01]} 35. c4 {[%emt 0:02:00]} Ne4+ {[%emt 0:02:18]} (35... g5 $142) 36. Kc2 $16 {[%emt 0:00:04]} g5 {[%emt 0:01:37]} 37. b4 {[%emt 0:02:15]} ({Much less strong is} 37. Nc3 Nxc3 38. Kxc3 Kf6) 37... Nd6 $2 {[%emt 0:00:35] Black cannot hold the game after this.} (37... Kf6 $16 38. c5 Ke5) 38. c5 $18 {[%emt 0:00:56]} Nb5 {[%emt 0:00:04]} 39. Rd2 {[%emt 0:00:24] Against Nd4+} Kf6 {[%emt 0:00:06]} 40. a4 {[%emt 0:01:52][%cal Ba2a4,Ba4b5,Bb5b6][%mdl 32]} Nc7 {[%emt 0:00:17]} (40... Na7 {was necessary.} 41. Nf2 Re1 (41... Rxh2 $2 {is the wrong capture.} 42. Ne4+ fxe4 43. Rxh2 $18) 42. Rd6+ Re6) 41. c6 {[%emt 0:09:37]} (41. Nc3 $142) 41... g4 $2 {[%emt 0:00:56]} (41... Re1 42. Rd7 Re2+ 43. Kd3 Re7) 42. Nc3 {[%emt 0:06:58] [#] b5 is the strong threat.} f4 {[%emt 0:00:08][%cal Bf5f4,Bf4g3][%mdl 32]} 43. b5 {[%emt 0:00:36] Hoping for b6.} axb5 {[%emt 0:00:05]} 44. axb5 {[%emt 0:00:46]} g3 {[%emt 0:00:09]} 45. hxg3 {[%emt 0:00:30] aiming for b6.} fxg3 {[%emt 0:00:03]} 46. b6 {[%emt 0:00:40]} Na6 {[%emt 0:00:04]} 47. c7 {[%emt 0:01:13]} Rh8 {[%emt 0:00:12] Weighted Error Value: White=0.22 (precise) /Black=0.49.  Loses game:     	---       	Black=1      Mistake:       	White=4     	Black=7      Inaccurate:     	White=1     	Black=2      OK:         	White=14    	Black=11     Best:        	White=5     	Black=3      Strong:       	---       	Black=1} 1-0

[Event "German Bundesliga 2024-25"]
[Site "Germany"]
[Date "2024.12.01"]
[Round "4.16"]
[White "Dinstuhl, Volkmar"]
[Black "Krstic, Petar"]
[Result "1/2-1/2"]
[Annotator "TA"]
[ECO "A06"]
[WhiteElo "2380"]
[BlackElo "2270"]
[PlyCount "127"]
[EventDate "2024.09.27"]
[EventType "team-tourn"]
[EventCountry "GER"]
[SourceTitle "playchess.com"]
[Source "ChessBase"]
[SourceQuality "1"]
[WhiteTeam "Muelheim Nord"]
[BlackTeam "Deggendorf"]
[TimeControl "40/5400+30:1800+30"]

{[%evp 9,127,10,15,15,11,18,18,4,3,0,18,12,17,31,18,9,8,6,67,57,65,63,69,62,178,153,143,183,136,25,85,81,127,102,113,105,95,110,145,132,131,89,161,26,22,38,32,34,85,83,79,75,67,93,116,76,98,83,74,73,96,75,133,134,133,85,130,69,60,58,49,49,66,31,35,12,40,40,40,40,25,25,25,25,25,25,25,25,30,30,30,30,30,30,30,0,0,0,0,0,0,0,0,0,0,0,0,0,0,0,0,0,0,0,0,0,0,0,0,0]} 1. b3 {[%emt 0:00:02]} d5 {[%emt 0:00:52]} 2. Bb2 {[%emt 0:00:08]} c5 {[%emt 0:01:20]} 3. e3 {[%emt 0:00:44]} a6 {[%emt 0:02:55]} 4. Nf3 {[%emt 0:01:44]} Nc6 {[%emt 0:00:06]} 5. d4 {[%emt 0:00:07]} cxd4 {[%emt 0:00:06]} 6. Nxd4 {[%emt 0:00:09]} e6 {[%emt 0:07:22]} 7. Nxc6 {[%emt 0:04:19]} bxc6 {[%emt 0:00:38]} 8. Nd2 {[%emt 0:00:05]} Nf6 {[%emt 0:00:40]} 9. Bd3 {[%emt 0:01:13]} a5 {[%emt 0:01:08]} 10. O-O {[%emt 0:03:19]} Bd6 {[%emt 0:02:59]} 11. e4 {[%emt 0:21:50]} Qc7 {[%emt 0:02:53]} 12. Bxf6 {[%emt 0:04:43]} gxf6 {[%emt 0:00:35]} (12... Bxh2+ $6 13. Kh1 gxf6 14. g3 Bxg3 15. fxg3 Qxg3 16. Qh5 $18 (16. Rxf6 Qh3+ 17. Kg1 Rg8+)) 13. Qh5 {[%emt 0:00:07]} Bf4 {[%emt 0:09:47]} (13... Bb7 $11) 14. Nf3 $14 {[%emt 0:01:09]} dxe4 {[%emt 0:18:01]} 15. Bxe4 {[%emt 0:01:12][%cal Og2g3]} f5 {[%emt 0:00:14]} 16. Bd3 {[%emt 0:00:23]} c5 {[%emt 0:00:21]} ({Black should play} 16... Kf8 $14) 17. Rfe1 {[%emt 0:00:58][%cal Og2g3]} Kf8 {[%emt 0:00:30]} 18. g3 {[%emt 0:04:35]} Rg8 {[%emt 0:03:13]} 19. Bf1 {[%emt 0:00:25]} (19. Qxh7 $6 Bb7 20. Be2 Rg6 21. Qh8+ Ke7 $14) (19. Kf1 $1 $16) 19... Bb7 {[%emt 0:12:07]} (19... Rg6 $1 $11 {remains equal.} 20. Qh4 (20. Qxh7 $2 Rh6 $19) 20... Kg7 (20... Bb7 21. Bg2 $15)) 20. Bg2 $16 {[%emt 0:01:23]} Bd6 {[%emt 0:01:02]} (20... Ra6 $142) 21. Ng5 {[%emt 0:14:15]} Rg6 {[%emt 0:05:05] Wards off Qh6+} 22. Bxb7 $1 {[%emt 0:05:44]} (22. Nxh7+ $6 Kg7 23. Bxb7 Qxb7 $11) 22... Qxb7 {[%emt 0:00:21]} 23. Rad1 {[%emt 0:03:14] Chess con chili.} (23. Nxh7+ $6 Kg7 24. Ng5 (24. Rad1 $2 Be7 $19) 24... Rh8 $14) 23... Qc7 {[%emt 0:06:36] [#]} 24. Rd3 $1 {[%emt 0:09:00][%cal Oe1d1]} (24. Nxh7+ Kg7 25. Rxd6 Qxd6 $17) 24... Rd8 {[%emt 0:07:57]} 25. Nf3 {[%emt 0:07:07][%cal Bg5f3,Bf3d2,Bd2e4][%mdl 32]} (25. Nxh7+ Kg7 26. Ng5 Rh8) 25... Kg7 {[%emt 0:05:49] [#]} (25... Kg8 $16) 26. Red1 {[%emt 0:05:22]} ({White must play} 26. Nh4 $1 $18) 26... Be7 $11 {[%emt 0:01:15]} 27. Rxd8 {[%emt 0:00:59]} Bxd8 {[%emt 0:00:05]} 28. Nd2 {[%emt 0:00:49]} f4 {[%emt 0:01:01]} (28... a4 $14) 29. Ne4 $16 {[%emt 0:01:54][%cal Oe4d6]} fxg3 {[%emt 0:01:33]} 30. hxg3 {[%emt 0:00:07]} Be7 {[%emt 0:00:18] Prevents Nd6} 31. Qf3 {[%emt 0:01:17]} f5 {[%emt 0:01:17]} 32. Nd2 {[%emt 0:00:27]} f4 {[%emt 0:01:45][%cal Rf4g3]} 33. Ne4 {[%emt 0:00:39]} fxg3 {[%emt 0:02:59]} 34. fxg3 {[%emt 0:00:06]} Qc6 {[%emt 0:01:02]} 35. Rf1 {[%emt 0:00:50]} Qe8 {[%emt 0:00:43] Prevents Qf7+.} (35... c4 $142) 36. Qc3+ {[%emt 0:02:33]} Kg8 {[%emt 0:00:22]} 37. Qe5 {[%emt 0:01:25]} (37. Nxc5 $2 Qc6 38. Rf3 Bxc5+ $19 (38... Qxc5+ $2 39. Kg2 $19)) (37. Qxa5 $142 {[%cal Oa5c7]} Rg4 38. Nf6+ (38. Nxc5 $2 Rxg3+ 39. Kf2 Bh4 $19) 38... Bxf6 39. Rxf6 Rxg3+ 40. Kf2) 37... a4 {[%emt 0:01:17]} 38. Kg2 {[%emt 0:00:29] White has more active pieces.} ({Not} 38. Nxc5 Qb5 (38... Bxc5+ 39. Qxc5 axb3 40. axb3 $16) 39. b4 Qb6 $11) (38. bxa4 $16 {a5 would now be deadly.} Qxa4 39. Qb8+ (39. Nxc5 $2 {is the wrong capture.} Qa7 $19) 39... Kg7 40. Qe5+ Kg8) 38... Qa8 {[%emt 0:01:49][%cal Oe7d6]} 39. Qf4 {[%emt 0:01:10]} axb3 {[%emt 0:01:15]} 40. axb3 {[%emt 0:00:09]} Rg7 {[%emt 0:00:36]} 41. Rf3 {[%emt 0:33:26]} h5 {[%emt 0:05:18]} 42. Kh2 {[%emt 0:00:00]} Qa6 {[%emt 0:06:34][%cal Oh5h4]} 43. Rf2 {[%emt 0:00:00]} Qa1 {[%emt 0:01:51]} 44. Nf6+ {[%emt 0:00:00]} Bxf6 {[%emt 0:00:07]} 45. Qxf6 {[%emt 0:00:00]} Qxf6 {[%emt 0:11:14]} 46. Rxf6 $14 {[%emt 0:00:00][%mdl 4096] Endgame KR-KR} c4 {[%emt 0:03:28]} 47. Rxe6 {[%emt 0:00:00]} cxb3 {[%emt 0:04:04]} 48. cxb3 {[%emt 0:00:00]} Rb7 {[%emt 0:00:06]} 49. Re3 {[%emt 0:00:00]} Rb4 {[%emt 0:01:26]} 50. Kg2 {[%emt 0:00:00]} h4 {[%emt 0:00:49]} 51. gxh4 {[%emt 0:00:00]} Rxh4 {[%emt 0:00:01]} 52. Rf3 {[%emt 0:00:00]} Kg7 {[%emt 0:00:41]} 53. Kf2 {[%emt 0:00:00]} Re4 $1 {[%emt 0:00:02]} 54. Re3 {[%emt 0:01:05]} Rd4 $1 {[%emt 0:00:05]} 55. Ke2 {[%emt 0:01:11]} Kf6 {[%emt 0:00:10]} 56. Rh3 {[%emt 0:03:36]} Ke5 {[%emt 0:00:17]} 57. Rh5+ {[%emt 0:00:23]} Kd6 {[%emt 0:00:17]} 58. Rb5 {[%emt 0:00:13]} Kc6 {[%emt 0:00:19]} 59. Ra5 {[%emt 0:00:40]} Rb4 {[%emt 0:01:26]} 60. Ra3 {[%emt 0:00:04]} Rd4 {[%emt 0:00:06]} 61. Ke3 {[%emt 0:00:04]} Rd8 {[%emt 0:00:49]} 62. Ra4 {[%emt 0:00:25]} Kc5 {[%emt 0:00:56]} 63. Rh4 {[%emt 0:00:43]} Rd1 {[%emt 0:00:14]} 64. Rc4+ {[%emt 0:01:55]} 1/2-1/2

[Event "German Bundesliga 2024-25"]
[Site "Germany"]
[Date "2024.12.01"]
[Round "4.16"]
[White "Lutz, Ruben"]
[Black "Kocharin, Timur"]
[Result "0-1"]
[Annotator "RC"]
[ECO "E61"]
[WhiteElo "2284"]
[BlackElo "2245"]
[PlyCount "97"]
[EventDate "2024.09.27"]
[EventType "team-tourn"]
[EventCountry "GER"]
[SourceTitle "playchess.com"]
[Source "ChessBase"]
[SourceQuality "1"]
[WhiteTeam "TU Dresden"]
[BlackTeam "Baden-Baden"]
[TimeControl "40/5400+30:1800+30"]

1. d4 {[%emt 0:00:03]} Nf6 {[%emt 0:00:30]} 2. Nf3 {[%emt 0:00:08]} b6 {[%emt 0:00:47]} 3. Bf4 {[%emt 0:05:11]} Bb7 {[%emt 0:01:50]} 4. h3 {[%emt 0:01:56]} g6 {[%emt 0:03:20]} 5. e3 {[%emt 0:01:18]} Bg7 {[%emt 0:01:34]} 6. Be2 {[%emt 0:01:29]} O-O {[%emt 0:00:44]} 7. O-O {[%emt 0:00:15]} d6 {[%emt 0:04:28]} 8. c4 {[%emt 0:02:49]} Nbd7 {[%emt 0:01:33]} 9. Nc3 {[%emt 0:00:50]} Ne4 {[%emt 0:01:28]} 10. Nxe4 {[%emt 0:05:49]} Bxe4 {[%emt 0:00:55]} 11. Rc1 {[%emt 0:01:43]} e5 {[%emt 0:04:52]} 12. Bg5 {[%emt 0:08:03]} Qe8 {[%emt 0:07:23]} 13. Qb3 {[%emt 0:23:48]} a5 {[%emt 0:07:26]} 14. Rfd1 {[%emt 0:06:42]} a4 {[%emt 0:11:41]} 15. Qb4 {[%emt 0:00:10]} h6 {[%emt 0:05:56]} 16. Bh4 {[%emt 0:00:13]} exd4 {[%emt 0:11:51]} 17. exd4 {[%emt 0:00:40]} g5 {[%emt 0:00:38]} 18. Bg3 {[%emt 0:02:00]} f5 {[%emt 0:00:19]} 19. c5 {[%emt 0:23:11]} bxc5 {[%emt 0:11:51]} 20. dxc5 {[%emt 0:00:06]} Nxc5 {[%emt 0:02:50]} 21. Bxd6 {[%emt 0:10:38]} cxd6 {[%emt 0:00:44]} 22. Rxd6 {[%emt 0:00:03]} Bxf3 {[%emt 0:06:52]} 23. Bxf3 {[%emt 0:03:23]} Ne4 {[%emt 0:00:09]} 24. Re1 {[%emt 0:01:05]} Rb8 {[%emt 0:01:26]} 25. Qc4+ {[%emt 0:00:48]} Qf7 {[%emt 0:00:08]} 26. Qxf7+ {[%emt 0:00:35]} Rxf7 {[%emt 0:00:08]} 27. Bxe4 {[%emt 0:00:28]} fxe4 {[%emt 0:00:05]} 28. b3 {[%emt 0:00:33]} axb3 {[%emt 0:00:33]} 29. axb3 {[%emt 0:00:03]} Rxb3 {[%emt 0:00:09]} 30. Rxe4 {[%emt 0:00:07]} Rb1+ {[%emt 0:00:21]} 31. Kh2 {[%emt 0:00:05]} Rxf2 {[%emt 0:00:19]} 32. Re8+ {[%emt 0:01:41]} Rf8 {[%emt 0:00:28]} 33. Re7 {[%emt 0:00:33]} Rf7 {[%emt 0:00:51]} 34. Rd8+ {[%emt 0:00:28]} Bf8 {[%emt 0:00:07]} 35. Re6 {[%emt 0:00:15]} Kg7 {[%emt 0:00:06]} 36. h4 {[%emt 0:00:47]} gxh4 {[%emt 0:08:58]} 37. Rd4 {[%emt 0:00:31]} Be7 {[%emt 0:00:36]} 38. Rd7 {[%emt 0:00:24]} Bg5 {[%emt 0:00:05]} 39. Rxf7+ {[%emt 0:00:18]} Kxf7 {[%emt 0:00:01]} 40. Rc6 {[%emt 0:00:14]} Bf4+ {[%emt 0:01:33]} 41. Kh3 {[%emt 0:30:19]} Rb3+ {[%emt 0:30:05]} 42. Kg4 {[%emt 0:00:09]} Bg5 {[%emt 0:00:04]} 43. Rc2 {[%emt 0:00:00]} Kg6 {[%emt 0:00:00]} 44. Rc6+ {[%emt 0:00:00]} Bf6 {[%emt 0:00:00]} 45. Rc2 {[%emt 0:00:00]} Rg3+ {[%emt 0:00:00]} 46. Kf4 {[%emt 0:00:00]} Bg5+ {[%emt 0:00:00]} 47. Ke4 {[%emt 0:00:00]} Re3+ {[%emt 0:00:00]} 48. Kd4 {[%emt 0:00:00]} Kf5 {[%emt 0:00:00]} 49. Rc5+ {[%emt 0:00:00]} 0-1